bitfinex/quotes_BTCUSD_20240719
["timestamp","ask_amount","ask_price","bid_price","bid_amount"]
[1721384443278,0.0038399,64186.0,64185.0,0.16653468]
[1721384444043,0.0038399,64186.0,64185.0,0.17953468]
[1721384444460,0.0038399,64186.0,64185.0,0.18053468]
[1721384444652,0.0038399,64186.0,64185.0,0.31883468]
[1721384444790,0.0038399,64186.0,64185.0,0.30483468]
[1721384445302,0.0038399,64186.0,64185.0,0.31783468]
[1721384446101,0.0038399,64186.0,64185.0,0.33183468]
[1721384446500,0.0038399,64186.0,64185.0,0.30383468]
[1721384446885,0.0038399,64186.0,64185.0,0.30483468]
[1721384447014,0.0038399,64186.0,64185.0,0.31783468]
[1721384447414,0.0038399,64186.0,64185.0,0.33183468]
[1721384447614,0.0038399,64186.0,64185.0,0.30383468]
[1721384448096,0.0038399,64186.0,64185.0,0.31783468]
[1721384448295,0.0038399,64186.0,64185.0,0.30483468]
[1721384448702,0.0038399,64186.0,64185.0,0.31783468]
[1721384449904,0.0038399,64186.0,64185.0,0.16872268]
[1721384450120,0.1596369,64186.0,64185.0,0.00342268]
[1721384450327,0.0038399,64186.0,64185.0,0.01642268]
[1721384450532,0.0038399,64186.0,64185.0,0.01640648]
[1721384450740,0.0038399,64186.0,64185.0,0.03040648]
[1721384450907,0.0038399,64186.0,64185.0,0.01740648]
[1721384451114,0.06289932,64186.0,64185.0,0.03040648]
[1721384451312,0.0038399,64186.0,64185.0,0.03040648]
[1721384452215,0.0038399,64186.0,64185.0,0.18620548]
[1721384453745,0.0038399,64186.0,64185.0,0.18711848]
[1721384455263,0.0038399,64186.0,64185.0,0.03131948]
[1721384455978,0.4712309,64186.0,64185.0,0.03131948]
[1721384456205,0.1596369,64186.0,64185.0,0.03131948]
[1721384456421,0.1596369,64186.0,64185.0,0.027913]
[1721384458659,0.1596369,64186.0,64185.0,0.03132481]
[1721384459217,0.5645721,64186.0,64185.0,0.03132481]
[1721384459674,0.4712309,64186.0,64185.0,0.027913]
[1721384460697,0.1596369,64186.0,64185.0,0.027913]
[1721384461077,0.4712309,64186.0,64185.0,0.027913]
[1721384463872,0.1596369,64186.0,64185.0,0.027913]
[1721384464283,0.1596369,64186.0,64185.0,0.03132481]
[1721384465994,0.1596369,64186.0,64185.0,0.18712381]
[1721384465995,0.0038399,64186.0,64185.0,0.18712381]
[1721384466882,0.0038399,64186.0,64185.0,0.57532281]
[1721384467139,0.0038399,64186.0,64185.0,0.63772281]
[1721384467508,0.0038399,64186.0,64185.0,0.94932181]
[1721384468895,0.0038399,64186.0,64185.0,0.63772281]
[1721384470620,0.0038399,64186.0,64185.0,0.03132481]
[1721384470826,0.1596369,64186.0,64185.0,0.03132481]
[1721384471033,0.4712309,64186.0,64185.0,0.03132481]
[1721384471855,0.8461249,64186.0,64185.0,0.03132481]
[1721384472021,1.05793461,64186.0,64185.0,0.03132481]
[1721384472223,1.31952861,64186.0,64185.0,0.027913]
[1721384472422,1.24952613,64186.0,64185.0,0.027913]
[1721384473004,1.3195395,64186.0,64185.0,0.014913]
[1721384473206,2.09702742,64186.0,64185.0,0.014913]
[1721384473425,2.23706018,64186.0,64185.0,0.014913]
[1721384473619,2.13266309,64186.0,64185.0,0.015913]
[1721384473826,2.13266309,64186.0,64185.0,0.001913]
[1721384474040,2.35686309,64186.0,64185.0,0.001913]
[1721384474326,2.35686309,64186.0,64185.0,0.004913]
[1721384474529,2.35686309,64186.0,64185.0,0.005913]
[1721384474724,2.35886309,64186.0,64185.0,0.006913]
[1721384474927,2.2816883,64186.0,64185.0,0.006913]
[1721384475997,2.23634421,64186.0,64185.0,0.006913]
[1721384476207,2.28154238,64186.0,64185.0,0.006913]
[1721384476715,2.54793821,64186.0,64185.0,0.006913]
[1721384476920,2.61609504,64186.0,64185.0,0.006913]
[1721384477300,3.11609504,64186.0,64185.0,0.006913]
[1721384478807,2.81609504,64186.0,64185.0,0.006913]
[1721384479279,2.57771081,64186.0,64185.0,0.006913]
[1721384479561,2.61640154,64186.0,64185.0,0.006913]
[1721384482392,2.61652346,64186.0,64185.0,0.006913]
[1721384482592,2.81652346,64186.0,64185.0,0.006913]
[1721384483083,2.61652346,64186.0,64185.0,0.006913]
[1721384483320,2.58064916,64186.0,64185.0,0.006913]
[1721384484263,2.72044787,64186.0,64185.0,0.006913]
[1721384485399,2.72043081,64186.0,64185.0,0.006913]
[1721384485660,2.75707444,64186.0,64185.0,0.006913]
[1721384487301,2.58064911,64186.0,64185.0,0.006913]
[1721384487509,0.779265,64163.0,64162.0,0.002794]
[1721384487807,0.779265,64163.0,64161.0,0.15957479]
[1721384487808,0.467565,64162.0,64161.0,0.0824]
[1721384488105,0.779275,64162.0,64161.0,0.0824]
[1721384489887,0.779275,64162.0,64161.0,0.0924]
[1721384490289,0.780275,64162.0,64161.0,0.1044]
[1721384490916,1.04485434,64162.0,64150.0,0.0767]
[1721384491232,1.04485434,64162.0,64141.0,0.15387479]
[1721384491233,0.04657618,64159.0,64141.0,0.15387479]
[1721384491431,0.34448041,64161.0,64141.0,0.15387479]
[1721384491432,0.155859,64161.0,64159.0,0.1426]
[1721384491646,0.15586,64160.0,64159.0,0.1426]
[1721384493172,0.15686,64160.0,64159.0,0.1486]
[1721384493591,0.15586,64160.0,64159.0,0.1426]
[1721384494214,0.15686,64160.0,64159.0,0.1426]
[1721384494559,0.7803,64160.0,64159.0,0.1426]
[1721384494717,0.46858,64160.0,64159.0,0.1426]
[1721384495072,0.7803,64160.0,64159.0,0.1426]
[1721384495275,0.7803,64160.0,64159.0,0.1486]
[1721384495276,0.7813,64160.0,64159.0,0.1486]
[1721384495683,0.7813,64160.0,64157.0,0.0628]
[1721384495684,0.779325,64158.0,64157.0,0.0628]
[1721384495888,1.091055,64158.0,64157.0,0.0628]
[1721384496099,0.001,64160.0,64157.0,0.0628]
[1721384496322,0.467595,64158.0,64157.0,0.0628]
[1721384497366,0.779325,64158.0,64157.0,0.0628]
[1721384497572,0.780325,64158.0,64157.0,0.0628]
[1721384498335,0.781325,64158.0,64157.0,0.0628]
[1721384498568,0.83300338,64158.0,64157.0,0.0668]
[1721384499177,0.779325,64158.0,64157.0,0.0628]
[1721384499358,0.780325,64158.0,64157.0,0.0678]
[1721384499983,0.779325,64158.0,64157.0,0.06609267]
[1721384500216,0.779325,64158.0,64157.0,0.07009267]
[1721384500752,0.889429,64158.0,64157.0,0.07009267]
[1721384500960,0.889429,64158.0,64157.0,0.0668]
[1721384501517,0.888429,64158.0,64157.0,0.004]
[1721384501767,0.467623,64154.0,64153.0,0.0628]
[1721384501998,0.467623,64154.0,64153.0,0.06609802]
[1721384502215,0.779372,64154.0,64153.0,0.00329802]
[1721384502415,0.467646,64151.0,64150.0,0.0628]
[1721384502545,0.77941,64151.0,64150.0,0.0628]
[1721384502747,0.0781372,64153.0,64142.0,0.1385]
[1721384502748,0.31178,64148.0,64142.0,0.1385]
[1721384502957,0.155895,64146.0,64143.0,0.00329802]
[1721384503351,0.155895,64146.0,64142.0,0.1385]
[1721384503352,0.155896,64146.0,64142.0,0.1385]
[1721384503545,0.155896,64146.0,64144.0,0.00329802]
[1721384503683,0.155896,64146.0,64145.0,0.00329802]
[1721384503904,0.155896,64145.0,64142.0,0.1385]
[1721384504102,0.155896,64145.0,64143.0,0.00329802]
[1721384504339,0.311785,64147.0,64142.0,0.1385]
[1721384504340,0.155899,64144.0,64142.0,0.1385]
[1721384504537,0.311785,64147.0,64143.0,0.00329802]
[1721384504538,0.155895,64146.0,64143.0,0.00329802]
[1721384504707,0.311769,64150.0,64144.0,0.218598]
[1721384504708,0.155887,64149.0,64144.0,0.218598]
[1721384504907,0.311779,64148.0,64145.0,0.00329802]
[1721384505124,0.155892,64147.0,64144.0,0.0627]
[1721384505306,0.001,64146.0,64145.0,0.00329802]
[1721384505526,0.001,64146.0,64144.0,0.0627]
[1721384505723,0.001,64146.0,64145.0,0.00329802]
[1721384506006,0.001,64146.0,64144.0,0.0627]
[1721384506213,0.001,64148.0,64145.0,0.00929802]
[1721384506536,0.156889,64148.0,64145.0,0.00929802]
[1721384506675,0.156889,64148.0,64146.0,0.0758]
[1721384506676,0.155889,64148.0,64146.0,0.0758]
[1721384507273,0.155889,64148.0,64147.0,0.00329802]
[1721384508280,0.467668,64148.0,64147.0,0.00329802]
[1721384508502,0.468668,64148.0,64147.0,0.00329802]
[1721384508914,0.156889,64148.0,64147.0,0.00329802]
[1721384509364,0.157889,64148.0,64147.0,0.00929802]
[1721384509869,0.5478094,64148.0,64147.0,0.00929802]
[1721384511479,0.8595884,64148.0,64147.0,0.00929802]
[1721384511867,0.8595884,64148.0,64147.0,0.006]
[1721384512265,0.781447,64148.0,64147.0,0.006]
[1721384514423,0.469668,64148.0,64147.0,0.006]
[1721384514883,0.468668,64148.0,64147.0,0.006]
[1721384515016,0.468668,64148.0,64147.0,0.00931882]
[1721384515208,0.779447,64148.0,64147.0,0.00331882]
[1721384515410,0.155895,64146.0,64142.0,0.0821]
[1721384515803,0.311783,64148.0,64143.0,0.00331882]
[1721384515804,0.155897,64145.0,64143.0,0.00331882]
[1721384516264,0.155897,64145.0,64142.0,0.0821]
[1721384516466,0.155892,64147.0,64142.0,0.0821]
[1721384516679,0.313783,64148.0,64145.0,0.0629]
[1721384516680,0.15789,64148.0,64145.0,0.0629]
[1721384516953,0.15589,64148.0,64145.0,0.0629]
[1721384517363,0.15589,64148.0,64146.0,0.00331882]
[1721384517564,0.2026568,64147.0,64146.0,0.00331882]
[1721384518303,0.155894,64146.0,64144.0,0.000913]
[1721384518508,0.001,64145.0,64144.0,0.000913]
[1721384518922,0.155894,64146.0,64144.0,0.000913]
[1721384519094,0.155896,64145.0,64144.0,0.000913]
[1721384520023,0.468689,64145.0,64144.0,0.000913]
[1721384520227,0.468689,64145.0,64144.0,0.004913]
[1721384521164,0.467689,64145.0,64144.0,0.004913]
[1721384521570,0.468689,64145.0,64144.0,0.000913]
[1721384521770,0.468689,64145.0,64144.0,0.005913]
[1721384521973,0.76267074,64145.0,64144.0,0.005913]
[1721384522179,1.23181716,64145.0,64144.0,0.005913]
[1721384522376,1.18417848,64145.0,64144.0,0.000913]
[1721384522627,0.01071489,64145.0,64144.0,0.146013]
[1721384522780,0.01071489,64145.0,64144.0,0.61671]
[1721384522781,0.001,64145.0,64144.0,0.61671]
[1721384522979,0.04669088,64157.0,64145.0,0.311791]
[1721384523182,0.09338177,64160.0,64147.0,0.15589]
[1721384523183,0.155879,64153.0,64147.0,0.15589]
[1721384523379,0.15588,64152.0,64147.0,0.15589]
[1721384523780,0.15588,64152.0,64148.0,0.155888]
[1721384524018,0.35842288,64158.0,64151.0,0.155879]
[1721384524217,0.15587,64156.0,64148.0,0.32047323]
[1721384524448,0.15587,64156.0,64152.0,0.155879]
[1721384525677,0.15987,64156.0,64152.0,0.155879]
[1721384525944,0.15587,64156.0,64152.0,0.155879]
[1721384526164,0.15887,64156.0,64152.0,0.155879]
[1721384526372,0.05873069,64155.0,64152.0,0.155879]
[1721384526577,0.15887,64156.0,64152.0,0.155879]
[1721384527217,0.00971249,64155.0,64152.0,0.155879]
[1721384528577,0.15687,64156.0,64152.0,0.155879]
[1721384528776,0.00971249,64155.0,64152.0,0.155879]
[1721384529175,0.15587,64156.0,64152.0,0.156879]
[1721384529376,0.22869674,64156.0,64152.0,0.156879]
[1721384529633,0.04669657,64159.0,64154.0,0.1386]
[1721384529843,0.04669657,64160.0,64156.0,0.311739]
[1721384530057,0.00083,64161.0,64157.0,0.155867]
[1721384530384,0.00971153,64160.0,64157.0,0.155867]
[1721384530587,0.00083,64161.0,64157.0,0.155867]
[1721384531176,0.00971151,64160.0,64157.0,0.155867]
[1721384531651,0.00083,64161.0,64157.0,0.155867]
[1721384531849,0.156687,64161.0,64157.0,0.155867]
[1721384532051,0.001,64159.0,64157.0,0.155867]
[1721384532516,0.156687,64161.0,64158.0,0.00313594]
[1721384532640,0.001,64159.0,64158.0,0.15900094]
[1721384532850,0.001,64159.0,64158.0,0.155865]
[1721384532851,0.00095,64159.0,64158.0,0.155865]
[1721384533050,0.00095,64159.0,64158.0,0.15900094]
[1721384533536,0.00083,64161.0,64158.0,0.15900094]
[1721384533740,0.001,64159.0,64158.0,0.15900094]
[1721384533944,0.002,64159.0,64158.0,0.15900094]
[1721384535362,0.04753308,64161.0,64158.0,0.15900094]
[1721384535741,0.001,64159.0,64158.0,0.15900094]
[1721384535895,0.002,64159.0,64158.0,0.16400094]
[1721384536575,0.001,64159.0,64158.0,0.00813594]
[1721384537795,0.15586,64160.0,64158.0,0.00313594]
[1721384537945,0.15586,64160.0,64156.0,0.155869]
[1721384538157,0.15586,64160.0,64157.0,0.00312255]
[1721384538380,0.15586,64160.0,64156.0,0.155869]
[1721384538560,0.001,64159.0,64157.0,0.00312255]
[1721384538756,0.001,64159.0,64156.0,0.155869]
[1721384538964,0.001,64159.0,64157.0,0.00312255]
[1721384539167,0.001,64159.0,64158.0,0.004]
[1721384539410,0.15686,64160.0,64158.0,0.00712255]
[1721384539561,0.467587,64159.0,64158.0,0.00712255]
[1721384539955,0.311742,64156.0,64147.0,0.0793]
[1721384540164,0.155867,64157.0,64156.0,0.005]
[1721384540375,0.29398637,64157.0,64156.0,0.005]
[1721384540591,0.155882,64152.0,64149.0,0.002794]
[1721384540800,0.155882,64152.0,64150.0,0.00311672]
[1721384541043,0.155882,64152.0,64148.0,0.155888]
[1721384541477,0.155877,64153.0,64149.0,0.15900272]
[1721384542036,0.155879,64152.0,64149.0,0.00311672]
[1721384542232,0.155884,64150.0,64149.0,0.00311672]
[1721384542431,0.155884,64150.0,64146.0,0.216793]
[1721384542655,0.155884,64150.0,64149.0,0.00812355]
[1721384543321,0.155884,64150.0,64146.0,0.216793]
[1721384543525,0.155884,64150.0,64146.0,0.0609]
[1721384543526,0.15589,64148.0,64146.0,0.0609]
[1721384543730,0.467669,64148.0,64147.0,0.00312355]
[1721384543875,1.13795835,64148.0,64147.0,0.00312355]
[1721384544074,1.13795835,64148.0,64144.0,0.000913]
[1721384544075,0.467689,64145.0,64144.0,0.000913]
[1721384544446,0.779482,64145.0,64144.0,0.000913]
[1721384545297,0.82622238,64145.0,64144.0,0.000913]
[1721384545911,0.155896,64145.0,64144.0,0.000913]
[1721384546744,0.155896,64145.0,64144.0,0.001913]
[1721384547361,0.155896,64145.0,64144.0,0.0050673]
[1721384547565,0.155894,64146.0,64144.0,0.0706673]
[1721384548725,0.155896,64145.0,64144.0,0.0706673]
[1721384549154,0.467689,64145.0,64144.0,0.0040673]
[1721384549273,0.467689,64145.0,64144.0,0.0070673]
[1721384549274,0.85449616,64145.0,64144.0,0.0070673]
[1721384549476,1.35558066,64145.0,64144.0,0.0070673]
[1721384549732,1.35558066,64145.0,64144.0,0.003913]
[1721384549733,1.4648639,64145.0,64144.0,0.003913]
[1721384549943,1.48823114,64145.0,64144.0,0.000913]
[1721384550125,1.39475981,64145.0,64144.0,0.000913]
[1721384550342,1.48823125,64145.0,64144.0,0.004913]
[1721384550762,1.3359495,64145.0,64144.0,0.000913]
[1721384550967,1.24248969,64145.0,64144.0,0.000913]
[1721384551182,1.33594974,64145.0,64144.0,0.000913]
[1721384551378,1.33694974,64145.0,64144.0,0.000913]
[1721384551794,0.95985674,64145.0,64144.0,0.000913]
[1721384552003,0.23869334,64145.0,64144.0,0.000913]
[1721384552217,0.158896,64145.0,64144.0,0.00407268]
[1721384552418,0.20761493,64145.0,64144.0,0.00407268]
[1721384552828,0.51440793,64145.0,64144.0,0.00407268]
[1721384553049,0.51640793,64145.0,64144.0,0.00407268]
[1721384553250,0.51740793,64145.0,64144.0,0.00407268]
[1721384553681,0.470689,64145.0,64144.0,0.00407268]
[1721384553867,0.51740297,64145.0,64144.0,0.00407268]
[1721384554315,0.781482,64145.0,64144.0,0.00407268]
[1721384554516,0.155896,64145.0,64144.0,0.000913]
[1721384554691,0.46850141,64145.0,64144.0,0.000913]
[1721384555095,0.46850141,64145.0,64144.0,0.004069]
[1721384555096,0.77929441,64145.0,64144.0,0.004069]
[1721384555304,0.77929441,64145.0,64144.0,0.000913]
[1721384555305,1.27800138,64145.0,64144.0,0.000913]
[1721384555729,1.27800138,64145.0,64144.0,0.004913]
[1721384556297,1.27800138,64145.0,64144.0,0.000913]
[1721384556725,1.27900138,64145.0,64144.0,0.000913]
[1721384556941,1.27899344,64145.0,64144.0,0.000913]
[1721384557147,1.13879344,64145.0,64144.0,0.000913]
[1721384557353,0.15670841,64145.0,64144.0,0.000913]
[1721384557787,0.46850141,64145.0,64144.0,0.000913]
[1721384558204,0.46850141,64145.0,64144.0,0.00406963]
[1721384558616,0.46950141,64145.0,64144.0,0.000913]
[1721384558825,0.46850141,64145.0,64144.0,0.000913]
[1721384559000,0.46750141,64145.0,64144.0,0.000913]
[1721384559233,0.46950141,64145.0,64144.0,0.000913]
[1721384559777,0.46850141,64145.0,64144.0,0.000913]
[1721384559982,0.91969441,64145.0,64144.0,0.00806963]
[1721384560207,0.91969441,64145.0,64144.0,0.004913]
[1721384560748,0.91969441,64145.0,64144.0,0.000913]
[1721384560950,0.91969441,64145.0,64144.0,0.001913]
[1721384561309,0.9663933,64145.0,64144.0,0.001913]
[1721384561932,0.9653933,64145.0,64144.0,0.001913]
[1721384562140,0.9653933,64145.0,64144.0,0.000913]
[1721384562637,0.04769889,64145.0,64144.0,0.062413]
[1721384562846,0.001,64145.0,64144.0,0.062413]
[1721384563050,0.157896,64145.0,64144.0,0.062413]
[1721384563254,0.157896,64145.0,64144.0,0.0655695]
[1721384563675,0.155896,64145.0,64144.0,0.062413]
[1721384564145,0.156896,64145.0,64144.0,0.06556944]
[1721384565240,0.157896,64145.0,64144.0,0.06556944]
[1721384565483,0.156896,64145.0,64144.0,0.06556944]
[1721384565696,0.155896,64145.0,64144.0,0.06556944]
[1721384565902,0.156896,64145.0,64144.0,0.06956944]
[1721384566745,0.156896,64145.0,64144.0,0.00806944]
[1721384567152,0.780482,64145.0,64144.0,0.00806944]
[1721384567563,0.79019611,64145.0,64144.0,0.004913]
[1721384567777,0.780482,64145.0,64144.0,0.004913]
[1721384568310,0.779482,64145.0,64144.0,0.004913]
[1721384568513,0.78919595,64145.0,64144.0,0.000913]
[1721384568736,0.79019595,64145.0,64144.0,0.000913]
[1721384569040,0.78919595,64145.0,64144.0,0.004913]
[1721384569279,0.79019595,64145.0,64144.0,0.004913]
[1721384569443,0.780482,64145.0,64144.0,0.000913]
[1721384569647,0.78919611,64145.0,64144.0,0.000913]
[1721384569818,0.79119611,64145.0,64144.0,0.000913]
[1721384570228,0.79019611,64145.0,64144.0,0.000913]
[1721384570656,0.79119611,64145.0,64144.0,0.000913]
[1721384572226,0.85339611,64145.0,64144.0,0.000913]
[1721384572537,1.74724112,64145.0,64144.0,0.000913]
[1721384572739,1.73852701,64145.0,64144.0,0.000913]
[1721384572971,1.47210336,64145.0,64144.0,0.000913]
[1721384573152,1.39235674,64145.0,64144.0,0.000913]
[1721384573294,1.40207157,64145.0,64144.0,0.000913]
[1721384573493,1.47210085,64145.0,64144.0,0.000913]
[1721384574763,1.52210085,64145.0,64144.0,0.000913]
[1721384574904,1.52310085,64145.0,64144.0,0.000913]
[1721384575116,1.52210085,64145.0,64144.0,0.000913]
[1721384575327,1.90165042,64145.0,64144.0,0.000913]
[1721384575526,2.21543915,64145.0,64144.0,0.000913]
[1721384575730,2.06108958,64145.0,64144.0,0.000913]
[1721384575928,2.18443293,64145.0,64144.0,0.000913]
[1721384576244,2.09106472,64145.0,64144.0,0.000913]
[1721384576456,2.20777498,64145.0,64144.0,0.000913]
[1721384576878,2.36212455,64145.0,64144.0,0.000913]
[1721384578338,2.24541429,64145.0,64144.0,0.000913]
[1721384578747,2.28295822,64145.0,64144.0,0.000913]
[1721384579177,2.28296163,64145.0,64144.0,0.000913]
[1721384579400,2.42304069,64145.0,64144.0,0.000913]
[1721384579623,2.93483058,64145.0,64144.0,0.000913]
[1721384579833,2.81575463,64145.0,64144.0,0.000913]
[1721384580042,3.32475463,64145.0,64144.0,0.000913]
[1721384580249,3.32475463,64145.0,64129.0,0.000913]
[1721384580250,1.278231,64130.0,64129.0,0.000913]
[1721384580466,1.82087842,64130.0,64129.0,0.000913]
[1721384580712,1.86427037,64130.0,64129.0,0.000913]
[1721384580928,1.91427037,64130.0,64129.0,0.000913]
[1721384581349,1.82087962,64130.0,64129.0,0.000913]
[1721384581557,2.23274562,64130.0,64129.0,0.000913]
[1721384581993,2.27060554,64130.0,64129.0,0.000913]
[1721384582211,2.29360554,64130.0,64129.0,0.000913]
[1721384582412,3.10547154,64130.0,64129.0,0.000913]
[1721384582855,3.06089431,64130.0,64129.0,0.000913]
[1721384583055,3.1089592,64130.0,64129.0,0.000913]
[1721384583262,3.06761309,64130.0,64129.0,0.000913]
[1721384583436,3.10580333,64130.0,64129.0,0.000913]
[1721384583634,3.25983623,64130.0,64129.0,0.000913]
[1721384583983,3.11980333,64130.0,64129.0,0.000913]
[1721384584291,3.12280333,64130.0,64129.0,0.000913]
[1721384584658,3.11996906,64130.0,64129.0,0.000913]
[1721384584841,1.453572,64122.0,64121.0,0.000913]
[1721384584982,2.301179,64122.0,64121.0,0.000913]
[1721384585189,2.2778078,64122.0,64121.0,0.000913]
[1721384585384,2.18455259,64122.0,64121.0,0.000913]
[1721384585794,2.27782066,64122.0,64121.0,0.000913]
[1721384586004,2.18455259,64122.0,64121.0,0.000913]
[1721384586252,2.26547316,64122.0,64121.0,0.000913]
[1721384587139,2.30047316,64122.0,64121.0,0.000913]
[1721384587325,2.54245759,64122.0,64121.0,0.000913]
[1721384587686,2.61235961,64122.0,64121.0,0.000913]
[1721384587891,3.10035961,64122.0,64121.0,0.000913]
[1721384588088,3.10035961,64122.0,64120.0,0.009163]
[1721384588089,1.765505,64121.0,64120.0,0.009163]
[1721384588349,2.47141464,64121.0,64120.0,0.00710425]
[1721384588519,2.51803304,64121.0,64120.0,0.00710425]
[1721384588759,2.46245228,64121.0,64120.0,0.00710425]
[1721384588929,2.56491228,64121.0,64120.0,0.00710425]
[1721384589133,2.51491228,64121.0,64120.0,0.00710425]
[1721384589332,2.51491228,64121.0,64102.0,0.000913]
[1721384589333,1.282689,64103.0,64102.0,0.000913]
[1721384589556,1.54142031,64103.0,64102.0,0.000913]
[1721384589998,1.90341731,64103.0,64102.0,0.000913]
[1721384590408,2.31541431,64103.0,64102.0,0.000913]
[1721384590731,2.34860303,64103.0,64102.0,0.000913]
[1721384591077,2.02641731,64103.0,64102.0,0.000913]
[1721384591280,2.03541731,64103.0,64102.0,0.000913]
[1721384591633,1.34637074,64103.0,64102.0,0.000913]
[1721384592015,1.36037074,64103.0,64102.0,0.000913]
[1721384592217,1.34637074,64103.0,64102.0,0.000913]
[1721384592588,1.36037074,64103.0,64102.0,0.000913]
[1721384592997,1.37337074,64103.0,64102.0,0.000913]
[1721384593619,1.51472031,64103.0,64102.0,0.000913]
[1721384594027,1.37337074,64103.0,64102.0,0.000913]
[1721384594692,1.35937074,64103.0,64102.0,0.000913]
[1721384595322,1.37037074,64103.0,64102.0,0.000913]
[1721384595955,1.35937074,64103.0,64102.0,0.000913]
[1721384596378,1.37137074,64103.0,64102.0,0.000913]
[1721384596599,1.52572031,64103.0,64102.0,0.000913]
[1721384596927,1.51272031,64103.0,64102.0,0.000913]
[1721384597333,1.52372031,64103.0,64102.0,0.000913]
[1721384597546,0.12502966,64103.0,64102.0,0.000913]
[1721384597761,0.590995,64103.0,64102.0,0.08155709]
[1721384597964,0.602995,64103.0,64102.0,0.08155709]
[1721384598427,0.578995,64103.0,64102.0,0.08155709]
[1721384598586,0.567995,64103.0,64102.0,0.08155709]
[1721384598792,0.588995,64103.0,64102.0,0.08155709]
[1721384599020,0.577995,64103.0,64102.0,0.08155709]
[1721384599194,0.889992,64103.0,64102.0,0.08155709]
[1721384599398,0.892992,64103.0,64102.0,0.078613]
[1721384599601,0.577995,64103.0,64102.0,0.078613]
[1721384599819,0.265998,64103.0,64102.0,0.14425709]
[1721384600019,0.268998,64103.0,64102.0,0.14425709]
[1721384600235,0.580995,64103.0,64102.0,0.14425709]
[1721384600626,0.013,64103.0,64102.0,0.14425709]
[1721384600833,0.003,64103.0,64102.0,0.30025809]
[1721384601062,0.003,64103.0,64102.0,0.61226009]
[1721384601253,0.006,64103.0,64102.0,0.61226009]
[1721384601459,0.003,64103.0,64102.0,0.92426209]
[1721384601635,0.005,64103.0,64102.0,0.92426209]
[1721384601832,0.002,64103.0,64102.0,1.23626409]
[1721384602034,0.53954871,64123.0,64111.0,0.1483]
[1721384602253,0.155972,64114.0,64111.0,0.1483]
[1721384602436,0.155972,64114.0,64112.0,0.00294409]
[1721384602643,0.155974,64113.0,64112.0,0.00294409]
[1721384603468,0.467923,64113.0,64112.0,0.00294409]
[1721384603834,0.467923,64113.0,64105.0,0.066]
[1721384603835,0.467975,64106.0,64105.0,0.066]
[1721384604310,0.467975,64106.0,64105.0,0.06894409]
[1721384604865,0.467975,64106.0,64105.0,0.066]
[1721384605393,0.468975,64106.0,64105.0,0.066]
[1721384605963,0.781958,64106.0,64105.0,0.071]
[1721384606202,0.781958,64106.0,64105.0,0.005]
[1721384607485,0.157992,64106.0,64105.0,0.005]
[1721384607933,0.002,64106.0,64105.0,0.298694]
[1721384608146,0.002,64106.0,64105.0,0.92267]
[1721384608349,0.002,64106.0,64105.0,0.92558138]
[1721384616282,0.002,64106.0,64105.0,0.92649438]
[1721384619718,0.002,64106.0,64105.0,0.61960638]
[1721384621798,0.002,64106.0,64105.0,0.93159438]
[1721384628085,0.002,64106.0,64105.0,0.85099438]
[1721384628661,0.002,64106.0,64105.0,0.78879438]
[1721384629064,0.002,64106.0,64105.0,1.10078238]
[1721384629242,0.002,64106.0,64105.0,1.24258238]
[1721384638311,0.002,64106.0,64105.0,1.39696412]
[1721384638516,0.002,64106.0,64105.0,2.15050532]
[1721384638731,0.002,64106.0,64105.0,2.63549332]
[1721384638932,0.00083,64120.0,64119.0,1.40364]
[1721384639143,0.00083,64120.0,64119.0,1.82768694]
[1721384639344,0.00083,64120.0,64119.0,1.70120021]
[1721384640105,0.00183,64120.0,64119.0,1.70120021]
[1721384641527,0.00283,64120.0,64119.0,1.71120021]
[1721384642161,0.00283,64120.0,64119.0,1.71989574]
[1721384643360,0.00283,64120.0,64119.0,1.71120021]
[1721384647076,0.00283,64120.0,64119.0,0.93297847]
[1721384647258,0.00283,64120.0,64119.0,0.85397847]
[1721384647640,0.00283,64120.0,64119.0,0.79287847]
[1721384649794,0.00283,64120.0,64119.0,0.48095847]
[1721384652239,0.08163,64120.0,64119.0,0.01307847]
[1721384652486,0.08163,64120.0,64119.0,0.01]
[1721384652487,0.237587,64120.0,64119.0,0.01]
[1721384652722,0.08163,64120.0,64119.0,0.01251575]
[1721384652929,0.610302,64120.0,64119.0,0.01251575]
[1721384653282,0.610302,64120.0,64119.0,0.01]
[1721384653485,0.609302,64120.0,64119.0,0.01]
[1721384653786,0.610302,64120.0,64119.0,0.01]
[1721384654187,0.155962,64118.0,64114.0,0.002794]
[1721384654399,0.155972,64114.0,64110.0,0.15598]
[1721384654593,0.155972,64114.0,64111.0,0.002794]
[1721384654774,0.155976,64113.0,64109.0,0.155984]
[1721384654982,0.311934,64116.0,64110.0,0.15598]
[1721384655182,0.155972,64114.0,64110.0,0.15598]
[1721384655607,0.155972,64114.0,64111.0,0.155979]
[1721384657279,0.001,64116.0,64111.0,0.311957]
[1721384657393,0.001,64116.0,64114.0,0.155971]
[1721384657592,0.14043,64120.0,64114.0,0.155971]
[1721384658056,0.14043,64120.0,64115.0,0.155969]
[1721384658320,0.15596,64119.0,64115.0,0.155969]
[1721384658516,0.155966,64117.0,64112.0,0.155975]
[1721384658983,0.155968,64116.0,64112.0,0.155975]
[1721384659316,0.156968,64116.0,64112.0,0.155975]
[1721384659514,0.156968,64116.0,64114.0,0.009]
[1721384660114,1.38726774,64115.0,64114.0,0.009]
[1721384661517,0.155982,64110.0,64106.0,0.003707]
[1721384661720,0.311957,64112.0,64107.0,0.00239791]
[1721384661930,0.60742074,64115.0,64106.0,0.000913]
[1721384661931,0.155988,64108.0,64106.0,0.000913]
[1721384662145,0.155988,64108.0,64107.0,0.00239791]
[1721384663534,0.467961,64108.0,64107.0,0.00239791]
[1721384663741,0.468961,64108.0,64107.0,0.00239791]
[1721384664506,0.468961,64108.0,64106.0,0.000913]
[1721384664507,0.155989,64107.0,64106.0,0.000913]
[1721384664708,0.467967,64107.0,64106.0,0.00333681]